fUSD/lending_fUSD_20240420
["ID","MTS","AMOUNT","RATE_DAILY","PERIOD"]
[323051779,1713621077983,-433.231704,0.0001589,2]
[323051780,1713621077993,-500.0,0.0001589,2]
[323051781,1713621078003,-433.231704,0.0001589,2]
[323051782,1713621078012,-5218.13,0.0001589,2]
[323051783,1713621078022,-433.231705,0.0001589,2]
[323051784,1713621078031,-500.0,0.0001589,2]
[323051785,1713621078041,-500.0,0.0001589,2]
[323051786,1713621078051,-500.0,0.0001589,2]
[323051787,1713621078061,-987.0,0.0001589,2]
[323051788,1713621078071,-500.0,0.0001589,2]
[323051789,1713621078080,-20114.69,0.0001589,2]
[323051790,1713621078090,-893.57,0.0001589,2]
[323051791,1713621078099,-500.0,0.0001589,2]
[323051792,1713621078110,-500.0,0.0001589,2]
[323051793,1713621078120,-637.43,0.0001589,2]
[323051794,1713621078129,-180.819163,0.0001589,2]
[323051795,1713621078139,-1731.18,0.0001589,2]
[323051796,1713621078149,-180.819163,0.0001589,2]
[323051797,1713621078159,-1285.12,0.0001589,2]
[323051798,1713621078168,-1109.59,0.0001589,2]
[323051799,1713621078178,-1096.27,0.0001589,2]
[323051800,1713621078187,-180.819163,0.0001589,2]
[323051801,1713621078197,-500.0,0.0001589,2]
[323051802,1713621078206,-180.819163,0.0001589,2]
[323051803,1713621078216,-725.21,0.0001589,2]
[323051804,1713621078226,-500.0,0.0001589,2]
[323051805,1713621078236,-500.0,0.0001589,2]
[323051806,1713621078246,-1089.81,0.0001589,2]
[323051807,1713621078255,-508.71,0.0001589,2]
[323051808,1713621078265,-500.0,0.0001589,2]
[323051809,1713621078276,-500.0,0.0001589,2]
[323051810,1713621078285,-1517.58,0.0001589,2]
[323051811,1713621078298,-520.08,0.0001589,2]
[323051812,1713621078308,-500.0,0.0001589,2]
[323051813,1713621078317,-500.0,0.0001589,2]
[323051814,1713621078327,-500.0,0.0001589,2]
[323051815,1713621078337,-1955.1,0.0001589,2]
[323051816,1713621078347,-500.0,0.0001589,2]
[323051817,1713621078358,-1531.19,0.0001589,2]
[323051818,1713621078368,-620.62,0.0001589,2]
[323051819,1713621078378,-967.39,0.0001589,2]
[323051820,1713621078389,-7480.38,0.0001589,2]
[323051821,1713621078399,-747.89,0.0001589,2]
[323051823,1713621078409,-1894.49,0.0001589,2]
[323051824,1713621078418,-873.58,0.0001589,2]
[323051825,1713621078428,-500.0,0.0001589,2]
[323051826,1713621078439,-1993.22,0.0001589,2]
[323051827,1713621078448,-880.45,0.0001589,2]
[323051828,1713621078458,-500.0,0.0001589,2]
[323051829,1713621078468,-500.0,0.0001589,2]
[323051830,1713621078479,-500.0,0.0001589,2]
[323051831,1713621078488,-1085.31,0.0001589,2]
[323051832,1713621078498,-500.0,0.0001589,2]
[323051833,1713621078508,-500.0,0.0001589,2]
[323051834,1713621078518,-2753.72,0.0001589,2]
[323051835,1713621078527,-500.0,0.0001589,2]
[323051836,1713621078537,-1162.41,0.0001589,2]
[323051837,1713621078547,-2731.21,0.0001589,2]
[323051838,1713621078557,-500.0,0.0001589,2]
[323051839,1713621078567,-1954.97,0.0001589,2]
[323051840,1713621078576,-794.92,0.0001589,2]
[323051841,1713621078587,-2627.79,0.0001589,2]
[323051842,1713621078597,-500.0,0.0001589,2]
[323051843,1713621078607,-404.23932347,0.0001589,2]
[323051844,1713621078617,-1013.89,0.0001589,2]
[323051845,1713621078627,-500.0,0.0001589,2]
[323051846,1713621078637,-500.0,0.0001589,2]
[323051847,1713621078646,-1131.55,0.0001589,2]
[323051848,1713621078655,-622.04,0.0001589,2]
[323051849,1713621078663,-1018.000193,0.0001589,2]
[323051850,1713621078670,-1320.88,0.0001589,2]
[323051851,1713621078677,-1018.000193,0.0001589,2]
[323051852,1713621078684,-500.0,0.0001589,2]
[323051853,1713621078693,-1413.35,0.0001589,2]
[323051854,1713621078700,-500.0,0.0001589,2]
[323051855,1713621078707,-518.2363287,0.0001589,2]
[323051856,1713621078714,-1018.000193,0.0001589,2]
[323051857,1713621078721,-500.0,0.0001589,2]
[323051858,1713621078735,-1018.000193,0.0001589,2]
[323051859,1713621078745,-563.88,0.0001589,2]
[323051860,1713621078755,-2346.4,0.0001589,2]
[323051861,1713621078765,-803.26,0.0001589,2]
[323051862,1713621078775,-1071.514077,0.0001589,2]
[323051863,1713621078784,-1071.514077,0.0001589,2]
[323051864,1713621078795,-2292.01,0.0001589,2]
[323051865,1713621078805,-831.92,0.0001589,2]
[323051866,1713621078814,-500.0,0.0001589,2]
[323051867,1713621078824,-1128.04,0.0001589,2]
[323051868,1713621078834,-5369.64,0.0001589,2]
[323051869,1713621078843,-500.0,0.0001589,2]
[323051870,1713621078852,-3431.1,0.0001589,2]
[323051871,1713621078862,-680.01,0.0001589,2]
[323051872,1713621078871,-546.08,0.0001589,2]
[323051873,1713621078880,-500.0,0.0001589,2]
[323051874,1713621078890,-2676.86,0.0001589,2]
[323051875,1713621078900,-500.0,0.0001589,2]
[323051876,1713621078910,-500.0,0.0001589,2]
[323051877,1713621078919,-727.28,0.0001589,2]
[323051878,1713621078929,-1071.514077,0.0001589,2]
[323051879,1713621078938,-1071.51407,0.0001589,2]
[323051880,1713621078953,-2216.75,0.0001589,2]
[323051881,1713621078992,-500.0,0.0001589,2]
[323051882,1713621079001,-823.84,0.0001589,2]
[323051883,1713621079010,-500.0,0.0001589,2]
[323051884,1713621079020,-1588.82,0.0001589,2]
[323051885,1713621079029,-841.25,0.0001589,2]
[323051886,1713621079038,-1811.35,0.0001589,2]
[323051887,1713621079047,-500.0,0.0001589,2]
[323051888,1713621079056,-573.47529789,0.0001589,2]
[323051889,1713621079066,-194.523484,0.0001589,2]
[323051890,1713621079075,-194.523484,0.0001589,2]
[323051891,1713621079084,-500.0,0.0001589,2]
[323051892,1713621079093,-500.0,0.0001589,2]
[323051893,1713621079103,-500.0,0.0001589,2]
[323051894,1713621079113,-500.0,0.0001589,2]
[323051895,1713621079123,-906.35,0.0001589,2]
[323051896,1713621079134,-866.08,0.0001589,2]
[323051897,1713621079143,-194.523484,0.0001589,2]
[323051898,1713621079153,-1171.0,0.0001589,2]
[323051899,1713621079162,-194.523475,0.0001589,2]
[323051900,1713621079171,-1349.52,0.0001589,2]
[323051901,1713621079181,-3500.27,0.0001589,2]
[323051902,1713621079190,-4084.13,0.0001589,2]
[323051903,1713621079201,-506.37,0.0001589,2]
[323051904,1713621079210,-2730.13,0.0001589,2]
[323051905,1713621079219,-1215.96,0.0001589,2]
[323051906,1713621079230,-1847.290605,0.0001589,2]
[323051907,1713621079239,-1847.290605,0.0001589,2]
[323051908,1713621079249,-500.0,0.0001589,2]
[323051909,1713621079258,-1847.290605,0.0001589,2]
[323051910,1713621079268,-1847.2906,0.0001589,2]
[323051911,1713621079278,-500.0,0.0001589,2]
[323051912,1713621079288,-500.0,0.0001589,2]
[323051913,1713621079298,-570.63,0.0001589,2]
[323051914,1713621079308,-1517.62,0.0001589,2]
[323051915,1713621079317,-500.0,0.0001589,2]
[323051916,1713621079326,-2492.62,0.0001589,2]
[323051917,1713621079336,-1694.66,0.0001589,2]
[323051918,1713621079345,-589.63,0.0001589,2]
[323051919,1713621079355,-1038.52,0.0001589,2]
[323051920,1713621079365,-500.0,0.0001589,2]
[323051921,1713621079375,-500.0,0.0001589,2]
[323051922,1713621079385,-544.68,0.0001589,2]
[323051923,1713621079395,-745.95,0.0001589,2]
[323051924,1713621079404,-500.0,0.0001589,2]
[323051925,1713621079414,-2146.81,0.0001589,2]
[323051926,1713621079424,-500.0,0.0001589,2]
[323051927,1713621079433,-12863.04,0.0001589,2]
[323051928,1713621079442,-500.0,0.0001589,2]
[323051929,1713621079452,-151.0,0.0001589,2]
[323051930,1713621079461,-1580.69,0.0001589,2]
[323051931,1713621079471,-872.9,0.0001589,2]
[323051932,1713621079597,-203.224129,0.0001589,2]
[323051933,1713621079617,-2481.94,0.0001589,2]
[323051934,1713621079627,-517.67,0.0001589,2]
[323051935,1713621079636,-2416.85,0.0001589,2]
[323051936,1713621079645,-716.61,0.0001589,2]
[323051937,1713621079655,-607.93,0.0001589,2]
[323051938,1713621079665,-165.999784,0.0001589,2]
[323051939,1713621079675,-500.0,0.0001589,2]
[323051940,1713621079685,-1176.49,0.0001589,2]
[323051941,1713621079695,-698.46,0.0001589,2]
[323051942,1713621079705,-1895.23,0.0001589,2]
[323051943,1713621079715,-834.84,0.0001589,2]
[323051944,1713621079726,-2366.37,0.0001589,2]
[323051945,1713621079737,-500.0,0.0001589,2]
[323051946,1713621079747,-500.0,0.0001589,2]
[323051947,1713621079757,-500.0,0.0001589,2]
[323051948,1713621079766,-500.0,0.0001589,2]
[323051949,1713621079776,-277.239701,0.0001589,2]
[323051950,1713621079786,-1264.42,0.0001589,2]
[323051951,1713621079796,-277.239701,0.0001589,2]
[323051952,1713621079806,-500.0,0.0001589,2]
[323051953,1713621079816,-1525.57,0.0001589,2]
[323051954,1713621079825,-1200.1,0.0001589,2]
[323051955,1713621079835,-500.0,0.0001589,2]
[323051956,1713621079845,-277.239701,0.0001589,2]
[323051957,1713621079854,-277.239705,0.0001589,2]
[323051958,1713621079864,-500.0,0.0001589,2]
[323051959,1713621079873,-2596.31,0.0001589,2]
[323051960,1713621079882,-3734.56,0.0001589,2]
[323051961,1713621079892,-735.18,0.0001589,2]
[323051962,1713621079901,-1983.17,0.0001589,2]
[323051963,1713621079911,-685.33,0.0001589,2]
[323051964,1713621079920,-1892.67,0.0001589,2]
[323051965,1713621079930,-794.67,0.0001589,2]
[323051966,1713621079939,-151.0,0.0001589,2]
[323051967,1713621079949,-151.0,0.0001589,2]
[323051968,1713621079958,-2762.86,0.0001589,2]
[323051969,1713621079967,-698.53,0.0001589,2]
[323051970,1713621079977,-500.0,0.0001589,2]
[323051971,1713621079987,-4314.41,0.0001589,2]
[323051972,1713621079997,-928.74,0.0001589,2]
[323051973,1713621080007,-704.33,0.0001589,2]
[323051974,1713621080017,-500.0,0.0001589,2]
[323051975,1713621080027,-556.39,0.0001589,2]
[323051976,1713621080036,-4750.03,0.0001589,2]
[323051977,1713621080046,-500.0,0.0001589,2]
[323051978,1713621080055,-500.0,0.0001589,2]
[323051979,1713621080065,-6352.14,0.0001589,2]
[323051980,1713621080075,-1612.53,0.0001589,2]
[323051981,1713621080085,-554.92,0.0001589,2]
[323051982,1713621080095,-500.0,0.0001589,2]
[323051983,1713621080106,-1230.53,0.0001589,2]
[323051984,1713621080116,-500.0,0.0001589,2]
[323051985,1713621080126,-500.0,0.0001589,2]
[323051986,1713621080136,-1323.32,0.0001589,2]
[323051987,1713621080146,-5730.53,0.0001589,2]
[323051988,1713621080155,-3222.01,0.0001589,2]
[323051989,1713621080165,-1237.83,0.0001589,2]
[323051990,1713621080175,-801.29,0.0001589,2]
[323051991,1713621080185,-500.0,0.0001589,2]
[323051992,1713621080194,-500.0,0.0001589,2]
[323051993,1713621080204,-500.0,0.0001589,2]
[323051994,1713621080213,-8896.9,0.0001589,2]
[323051995,1713621080223,-1250.13,0.0001589,2]
[323051996,1713621080236,-500.0,0.0001589,2]
[323051997,1713621080246,-277.780836,0.0001589,2]
[323051998,1713621080257,-21516.91,0.0001589,2]
[323051999,1713621080267,-1238.37,0.0001589,2]
[323052000,1713621080279,-269.369348,0.0001589,2]
[323052001,1713621080290,-1269.11,0.0001589,2]
[323052002,1713621080302,-500.0,0.0001589,2]
[323052003,1713621080312,-269.369348,0.0001589,2]
[323052004,1713621080324,-618.25,0.0001589,2]
[323052005,1713621080334,-622.79,0.0001589,2]
[323052006,1713621080345,-582.42,0.0001589,2]
[323052007,1713621080355,-500.0,0.0001589,2]
[323052008,1713621080365,-500.0,0.0001589,2]
[323052009,1713621080376,-500.0,0.0001589,2]
[323052010,1713621080387,-2750.27075008,0.00015898,2]
[323052011,1713621080396,-12604.92107252,0.000159,2]
[323052012,1713621080406,-500.0,0.000159,2]
[323052013,1713621080417,-199.96818657,0.00015927,2]
[323052014,1713621080427,-37715.24880855,0.0001596,2]
[323052015,1713621080437,-160.291632,0.00015985,2]
[323052016,1713621080447,-3091510.47103758,0.00016,2]
[323052017,1713621080457,-155.0,0.00016,2]
[323052018,1713621080467,-3086.1571237,0.00016,2]
[323052019,1713621080478,-3007.20517079,0.00016,2]
[323052020,1713621080488,-14904.0,0.00016,2]
[323052021,1713621080498,-20828.8324346,0.00016,2]
[323052022,1713621080508,-40010.33849577,0.00016,2]
[323052023,1713621080518,-2000.0,0.00016,2]
[323052024,1713621080528,-2300.0,0.00016,2]
[323052025,1713621080539,-151.0,0.00016,2]
[323052026,1713621080549,-150.0,0.00016,2]
[323052027,1713621080559,-150.0,0.00016,2]
[323052028,1713621080569,-451.571921,0.00016019,2]
[323052029,1713621080579,-15844.99200633,0.00016021,2]
[323052030,1713621080589,-161.0,0.0001604,2]
[323052031,1713621080599,-208.328743,0.0001605,2]
[323052032,1713621080609,-815.865739,0.0001605,2]
[323052033,1713621080619,-163.173148,0.0001605,2]
[323052034,1713621080629,-164.65244567,0.00016064,2]
[323052035,1713621080639,-1101.20642389,0.0001607,2]
[323052036,1713621080649,-700.0,0.0001607,2]
[323052037,1713621080659,-700.0,0.0001607,2]
[323052038,1713621080669,-700.0,0.0001607,2]
[323052039,1713621080679,-4008.43216916,0.000161,2]
[323052040,1713621080689,-995.78,0.000161,2]
[323052041,1713621080699,-318.28,0.000161,2]
[323052042,1713621080709,-600.0,0.000161,2]
[323052043,1713621080720,-266.64465607,0.0001611,2]
[323052044,1713621080731,-321.72537832,0.0001611,2]
[323052045,1713621080741,-9999.99,0.00016116,2]
[323052046,1713621080751,-500.0,0.00016164,2]
[323052047,1713621080761,-500.0,0.00016164,2]
[323052048,1713621080770,-500.0,0.00016164,2]
[323052049,1713621080780,-635.04,0.00016164,2]
[323052050,1713621080790,-639.54,0.00016164,2]
[323052051,1713621080800,-500.0,0.00016164,2]
[323052052,1713621080809,-500.0,0.00016164,2]
[323052053,1713621080819,-852.82,0.00016164,2]
[323052054,1713621080829,-654.32,0.00016164,2]
[323052055,1713621080839,-500.0,0.00016164,2]
[323052056,1713621080848,-502.56,0.00016164,2]
[323052057,1713621080858,-500.0,0.00016164,2]
[323052058,1713621080868,-500.0,0.00016164,2]
[323052059,1713621080878,-500.0,0.00016164,2]
[323052060,1713621080888,-500.0,0.00016164,2]
[323052061,1713621080898,-500.0,0.00016164,2]
[323052062,1713621080908,-611.35,0.00016164,2]
[323052063,1713621080918,-500.0,0.00016164,2]
[323052064,1713621080928,-735.88,0.00016164,2]
[323052065,1713621080937,-500.0,0.00016164,2]
[323052066,1713621080947,-717.35,0.00016164,2]
[323052067,1713621080957,-500.0,0.00016164,2]
[323052068,1713621080967,-539.29,0.00016164,2]
[323052069,1713621080976,-500.0,0.00016164,2]
[323052070,1713621080986,-500.0,0.00016164,2]
[323052071,1713621080996,-500.0,0.00016164,2]
[323052072,1713621081006,-500.0,0.00016164,2]
[323052073,1713621081015,-500.0,0.00016164,2]
[323052074,1713621081024,-500.0,0.00016164,2]
[323052075,1713621081034,-500.0,0.00016164,2]
[323052076,1713621081044,-500.0,0.00016164,2]
[323052077,1713621081054,-569.73,0.00016164,2]
[323052078,1713621081064,-500.0,0.00016164,2]
[323052079,1713621081073,-500.0,0.00016164,2]
[323052080,1713621081083,-500.0,0.00016164,2]
[323052081,1713621081093,-827.03,0.00016164,2]
[323052082,1713621081103,-637.21,0.00016164,2]
[323052083,1713621081113,-500.0,0.00016164,2]
[323052084,1713621081122,-172.96922431,0.00016164,2]
[323052085,1713621081132,-637.25566879,0.00016164,2]
[323052086,1713621081141,-500.0,0.00016164,2]
[323052087,1713621081151,-500.0,0.00016164,2]
[323052088,1713621081161,-500.0,0.00016164,2]
[323052089,1713621081171,-579.7,0.00016164,2]
[323052090,1713621081181,-969.36,0.00016164,2]
[323052091,1713621081191,-500.0,0.00016164,2]
[323052092,1713621081200,-781.94,0.00016164,2]
[323052093,1713621081210,-667.13,0.00016164,2]
[323052094,1713621081221,-500.0,0.00016164,2]
[323052095,1713621081232,-500.0,0.00016164,2]
[323052096,1713621081242,-500.0,0.00016164,2]
[323052097,1713621081251,-500.0,0.00016164,2]
[323052098,1713621081261,-500.0,0.00016164,2]
[323052099,1713621081271,-500.0,0.00016164,2]
[323052100,1713621081282,-770.44,0.00016164,2]
[323052101,1713621081293,-1099.12,0.00016164,2]
[323052102,1713621081303,-500.0,0.00016164,2]
[323052103,1713621081313,-597.89,0.00016164,2]
[323052104,1713621081323,-500.0,0.00016164,2]
[323052105,1713621081332,-500.0,0.00016164,2]
[323052106,1713621081342,-522.54,0.00016164,2]
[323052107,1713621081351,-500.0,0.00016164,2]
[323052108,1713621081361,-263.01958816,0.00016164,2]
[323052109,1713621081372,-500.0,0.00016164,2]
[323052110,1713621081384,-532.55,0.00016164,2]
[323052111,1713621081394,-500.0,0.00016164,2]
[323052112,1713621081403,-500.0,0.00016164,2]
[323052113,1713621081413,-618.57,0.00016164,2]
[323052114,1713621081423,-500.0,0.00016164,2]
[323052115,1713621081433,-737.86,0.00016164,2]
[323052116,1713621081443,-500.0,0.00016164,2]
[323052117,1713621081453,-515.87,0.00016164,2]
[323052118,1713621081463,-912.68,0.00016164,2]
[323052119,1713621081473,-500.0,0.00016164,2]
[323052120,1713621081486,-500.0,0.00016164,2]
[323052121,1713621081496,-500.0,0.00016164,2]
[323052122,1713621081506,-860.75,0.00016164,2]
[323052123,1713621081517,-500.0,0.00016164,2]
[323052124,1713621081527,-702.21,0.00016164,2]
[323052125,1713621081539,-500.0,0.00016164,2]
[323052126,1713621081549,-500.0,0.00016164,2]
[323052127,1713621081560,-500.0,0.00016164,2]
[323052128,1713621081571,-500.0,0.00016164,2]
[323052129,1713621081580,-821.61,0.00016164,2]
[323052130,1713621081591,-453.35203179,0.00016164,2]
[323052131,1713621081601,-500.0,0.00016164,2]
[323052132,1713621081610,-821.76,0.00016164,2]
[323052133,1713621081620,-549.15,0.00016164,2]
[323052134,1713621081630,-500.0,0.00016164,2]
[323052135,1713621081640,-500.0,0.00016164,2]
[323052136,1713621081651,-500.0,0.00016164,2]
[323052137,1713621081660,-500.0,0.00016164,2]
[323052138,1713621081670,-500.0,0.00016164,2]
[323052139,1713621081681,-940.84,0.00016164,2]
[323052140,1713621081691,-500.0,0.00016164,2]
[323052141,1713621081700,-863.56,0.00016164,2]
[323052142,1713621081712,-500.0,0.00016164,2]
[323052143,1713621081722,-1083.21,0.00016164,2]
[323052144,1713621081733,-500.0,0.00016164,2]
[323052145,1713621081743,-500.0,0.00016164,2]
[323052146,1713621081753,-1649.11,0.00016164,2]
[323052147,1713621081763,-500.0,0.00016164,2]
[323052148,1713621081774,-500.0,0.00016164,2]
[323052149,1713621082116,-933.2,0.00016164,2]
[323052150,1713621082127,-500.0,0.00016164,2]
[323052151,1713621082137,-1738.53,0.00016164,2]
[323052152,1713621082147,-500.0,0.00016164,2]
[323052153,1713621082157,-500.0,0.00016164,2]
[323052154,1713621082167,-500.0,0.00016164,2]
[323052155,1713621082177,-641.19,0.00016164,2]
[323052156,1713621082187,-546.2,0.00016164,2]
[323052157,1713621082196,-669.09,0.00016164,2]
[323052158,1713621082206,-538.48,0.00016164,2]
[323052159,1713621082216,-500.0,0.00016164,2]
[323052160,1713621082225,-526.85,0.00016164,2]
[323052161,1713621082235,-1472.9,0.00016164,2]
[323052162,1713621082244,-500.0,0.00016164,2]
[323052163,1713621082254,-248.26748586,0.00016164,2]
[323052164,1713621082264,-679.04,0.00016164,2]
[323052165,1713621082274,-633.05,0.00016164,2]
[323052166,1713621082287,-500.0,0.00016164,2]
[323052167,1713621082297,-500.0,0.00016164,2]
[323052168,1713621082307,-500.0,0.00016164,2]
[323052169,1713621082318,-889.7,0.00016164,2]
[323052170,1713621082329,-749.34,0.00016164,2]
[323052171,1713621082338,-500.0,0.00016164,2]
[323052172,1713621082348,-614.66,0.00016164,2]
[323052173,1713621082358,-669.86,0.00016164,2]
[323052174,1713621082368,-627.14,0.00016164,2]
[323052175,1713621082379,-500.0,0.00016164,2]
[323052176,1713621082389,-887.51,0.00016164,2]
[323052177,1713621082399,-500.0,0.00016164,2]
[323052178,1713621082409,-595.2,0.00016164,2]
[323052179,1713621082419,-500.0,0.00016164,2]
[323052180,1713621082428,-500.0,0.00016164,2]
[323052181,1713621082438,-500.0,0.00016164,2]
[323052182,1713621082447,-712.4,0.00016164,2]
[323052183,1713621082457,-500.0,0.00016164,2]
[323052184,1713621082466,-654.49,0.00016164,2]
[323052185,1713621082477,-583.86,0.00016164,2]
[323052186,1713621082486,-714.19,0.00016164,2]
[323052187,1713621082496,-543.54,0.00016164,2]
[323052188,1713621082506,-856.07,0.00016164,2]
[323052189,1713621082516,-519.9,0.00016164,2]
[323052190,1713621082525,-1382.29,0.00016164,2]
[323052191,1713621082535,-500.0,0.00016164,2]
[323052192,1713621082545,-241.99,0.00016164,2]
[323052193,1713621082555,-500.0,0.00016164,2]
[323052194,1713621082564,-704.01,0.00016164,2]
[323052195,1713621082574,-500.0,0.00016164,2]
[323052196,1713621082583,-778.05,0.00016164,2]
[323052197,1713621082592,-943.86,0.00016164,2]
[323052198,1713621082602,-533.87,0.00016164,2]
[323052199,1713621082613,-1206.79,0.00016164,2]
[323052200,1713621082622,-500.0,0.00016164,2]
[323052201,1713621082632,-864.0,0.00016164,2]
[323052202,1713621082642,-871.35,0.00016164,2]
[323052203,1713621082651,-500.0,0.00016164,2]
[323052204,1713621082661,-500.0,0.00016164,2]
[323052205,1713621082670,-500.0,0.00016164,2]
[323052206,1713621082680,-581.68,0.00016164,2]
[323052207,1713621082690,-998.69,0.00016164,2]
[323052208,1713621082700,-12702.31776665,0.00016164,5]
[323052209,1713621082710,-580.51,0.00016164,2]
[323052210,1713621082719,-500.0,0.00016164,2]
[323052211,1713621082730,-564.88,0.00016164,2]
[323052212,1713621082739,-777.99,0.00016164,2]
[323052213,1713621082749,-407.0864393,0.00016164,2]
[323052214,1713621082758,-566.7,0.00016164,2]
[323052215,1713621082768,-500.0,0.00016164,2]
[323052216,1713621082778,-500.0,0.00016164,2]
[323052217,1713621082788,-772.56,0.00016164,2]
[323052218,1713621082798,-922.4,0.00016164,2]
[323052219,1713621082807,-500.0,0.00016164,2]
[323052220,1713621082817,-500.0,0.00016164,2]
[323052221,1713621082827,-500.0,0.00016164,2]
[323052222,1713621082836,-741.19,0.00016164,2]
[323052223,1713621082845,-510.23,0.00016164,2]
[323052224,1713621082856,-500.0,0.00016164,2]
[323052225,1713621082866,-1301.99,0.00016164,2]
[323052226,1713621082876,-1011.91,0.00016164,2]
[323052227,1713621082885,-729.34,0.00016164,2]
[323052228,1713621082895,-598.99,0.00016164,2]
[323052229,1713621082905,-590.27,0.00016164,2]
[323052230,1713621082916,-500.0,0.00016164,2]
[323052231,1713621082926,-500.0,0.00016164,2]
[323052232,1713621082936,-500.0,0.00016164,2]
[323052233,1713621082946,-983.5,0.00016164,2]
[323052234,1713621082956,-500.0,0.00016164,2]
[323052235,1713621082965,-500.0,0.00016164,2]
[323052236,1713621082976,-500.0,0.00016164,2]
[323052237,1713621082988,-829.71,0.00016164,2]
[323052238,1713621082997,-500.0,0.00016164,2]
[323052239,1713621083007,-605.59,0.00016164,2]
[323052240,1713621083016,-500.0,0.00016164,2]
[323052241,1713621083026,-1243.7,0.00016164,2]
[323052242,1713621083035,-1886.34,0.00016164,2]
[323052243,1713621083045,-331.68772311,0.00016164,2]
[323052244,1713621083055,-500.0,0.00016164,2]
[323052245,1713621083064,-685.34,0.00016164,2]
[323052246,1713621083074,-500.0,0.00016164,2]
[323052247,1713621083083,-500.0,0.00016164,2]
[323052248,1713621083093,-500.0,0.00016164,2]
[323052249,1713621083103,-500.0,0.00016164,2]
[323052250,1713621083113,-500.0,0.00016164,2]
[323052251,1713621083123,-606.98694162,0.00016164,2]
[323052252,1713621083133,-723.5,0.00016164,2]
[323052253,1713621083142,-612.53,0.00016164,2]
[323052254,1713621083153,-730.92,0.00016164,2]
[323052255,1713621083162,-500.0,0.00016164,2]
[323052256,1713621083172,-500.0,0.00016164,2]
[323052257,1713621083181,-1025.52,0.00016164,2]
[323052258,1713621083191,-500.0,0.00016164,2]
[323052259,1713621083200,-500.0,0.00016164,2]
[323052260,1713621083210,-500.0,0.00016164,2]
[323052261,1713621083219,-1486.68,0.00016164,2]
[323052262,1713621083231,-500.0,0.00016164,2]
[323052263,1713621083240,-970.1,0.00016164,2]
[323052264,1713621083250,-500.0,0.00016164,2]
[323052265,1713621083259,-500.0,0.00016164,2]
[323052266,1713621083269,-600.76,0.00016164,2]
[323052267,1713621083280,-500.0,0.00016164,2]
[323052268,1713621083289,-500.0,0.00016164,2]
[323052269,1713621083303,-775.5,0.00016164,2]
[323052270,1713621083313,-580.95,0.00016164,2]
[323052271,1713621083322,-1195.92,0.00016164,2]
[323052272,1713621083332,-500.0,0.00016164,2]
[323052273,1713621083342,-971.12,0.00016164,2]
[323052274,1713621083352,-558.98,0.00016164,2]
[323052275,1713621083361,-751.59,0.00016164,2]
[323052276,1713621083371,-500.0,0.00016164,2]
[323052277,1713621083381,-500.0,0.00016164,2]
[323052278,1713621083391,-1627.69,0.00016164,2]
[323052279,1713621083402,-1693.65,0.00016164,2]